fUST/lending_fUST_20250920
["ID","MTS","AMOUNT","RATE_DAILY","PERIOD"]
[386522666,1758347441483,-151.0,0.00026823,7]
[386522667,1758347441492,-151.0,0.00026823,7]
[386522668,1758347441501,-151.0,0.00026823,7]
[386522669,1758347441511,-151.0,0.00026823,7]
[386522670,1758347441520,-151.0,0.00026823,7]
[386522671,1758347441529,-151.0,0.00026823,7]
[386522672,1758347441539,-151.0,0.00026823,7]
[386522673,1758347441548,-151.0,0.00026823,7]
[386522674,1758347441557,-151.0,0.00026823,7]
[386522675,1758347441566,-151.0,0.00026823,7]
[386522676,1758347441575,-151.0,0.00026823,7]
[386522677,1758347441584,-558.13,0.00026828,7]
[386522678,1758347441593,-480.0,0.0002684,2]
[386522679,1758347441602,-480.0,0.00026843,2]
[386522680,1758347441611,-480.0,0.00026843,2]
[386522681,1758347441621,-480.0,0.00026843,2]
[386522682,1758347441630,-243.89327552,0.00026843,2]
[386522683,1758347441639,-480.0,0.00026843,2]
[386522684,1758347441648,-489.45243387,0.00026843,2]
[386522685,1758347441658,-586.58,0.00026843,2]
[386522686,1758347441667,-480.0,0.00026843,2]
[386522687,1758347441676,-480.0,0.00026843,2]
[386522688,1758347441776,-151.0,0.00026843,7]
[386522689,1758347441786,-151.0,0.00026843,7]
[386522690,1758347441795,-151.0,0.00026843,7]
[386522691,1758347441805,-151.0,0.00026843,7]
[386522692,1758347441815,-500.0,0.00026873,2]
[386522693,1758347441824,-500.0,0.00026873,2]
[386522694,1758347441834,-302.15500742,0.00026881,2]
[386522695,1758347441843,-480.0,0.00026895,2]
[386522696,1758347441852,-480.0,0.00026895,2]
[386522697,1758347441863,-703.2,0.00026895,2]
[386522698,1758347441873,-378.84,0.00026895,2]
[386522699,1758347441882,-480.0,0.00026895,2]
[386522700,1758347441892,-480.0,0.00026895,2]
[386522701,1758347441901,-480.0,0.00026895,2]
[386522702,1758347441911,-480.0,0.00026895,2]
[386522703,1758347441920,-480.0,0.00026895,2]
[386522704,1758347441930,-480.0,0.00026895,2]
[386522705,1758347441939,-480.0,0.00026895,2]
[386522706,1758347441949,-404.55,0.00026895,2]
[386522707,1758347441958,-480.0,0.00026895,2]
[386522708,1758347441968,-480.0,0.00026896,2]
[386522709,1758347441977,-480.0,0.00026896,2]
[386522710,1758347441987,-480.0,0.00026896,2]
[386522711,1758347441997,-651.71,0.00026896,2]
[386522712,1758347442006,-480.0,0.00026896,2]
[386522713,1758347442016,-480.0,0.00026896,2]
[386522714,1758347442026,-500.0,0.00026898,5]
[386522715,1758347442036,-111966.140923,0.00026898,2]
[386522716,1758347442045,-4340.715008,0.00026898,2]
[386522717,1758347442054,-542.52,0.00026898,2]
[386522718,1758347442063,-151.0,0.00026898,7]
[386522719,1758347442072,-151.0,0.00026898,7]
[386522720,1758347442081,-151.0,0.00026898,7]
[386522721,1758347442090,-151.0,0.00026898,7]
[386522722,1758347442099,-151.0,0.00026898,7]
[386522723,1758347442108,-151.0,0.00026898,7]
[386522724,1758347442118,-151.0,0.00026898,7]
[386522725,1758347442127,-151.0,0.00026898,7]
[386522726,1758347442136,-152.491886,0.00026898,7]
[386522727,1758347442146,-1845.78,0.00026899,2]
[386522728,1758347442155,-480.0,0.00026899,2]
[386522729,1758347442164,-217.03,0.00026908,3]
[386522730,1758347442172,-651.09,0.00026908,3]
[386522731,1758347442181,-151.0,0.00026908,7]
[386522732,1758347442191,-151.0,0.00026908,7]
[386522733,1758347442200,-151.0,0.00026908,7]
[386522734,1758347442209,-151.0,0.00026908,7]
[386522735,1758347442219,-151.0,0.00026908,7]
[386522736,1758347442229,-151.0,0.00026908,7]
[386522737,1758347442238,-151.0,0.00026908,7]
[386522738,1758347442247,-223932.281845,0.00026909,2]
[386522739,1758347442256,-8681.430016,0.00026909,2]
[386522740,1758347442265,-151.0,0.00026919,7]
[386522741,1758347442274,-151.0,0.00026919,7]
[386522742,1758347442284,-151.0,0.00026919,7]
[386522743,1758347442293,-151.0,0.00026919,7]
[386522744,1758347442303,-151.0,0.00026919,7]
[386522745,1758347442312,-151.0,0.00026919,7]
[386522746,1758347442321,-151.0,0.00026919,7]
[386522747,1758347442331,-151.0,0.00026919,7]
[386522748,1758347442341,-151.0,0.00026919,7]
[386522749,1758347442350,-151.0,0.00026919,7]
[386522750,1758347442360,-151.0,0.00026919,7]
[386522751,1758347442369,-151.0,0.00026919,7]
[386522752,1758347442379,-151.0,0.00026919,7]
[386522753,1758347442388,-151.0,0.00026919,7]
[386522754,1758347442398,-151.0,0.00026919,7]
[386522755,1758347442408,-151.0,0.00026919,7]
[386522756,1758347442417,-151.0,0.00026919,7]
[386522757,1758347442426,-151.0,0.00026919,7]
[386522758,1758347442436,-151.0,0.00026919,7]
[386522759,1758347442446,-151.0,0.00026919,7]
[386522760,1758347442455,-151.0,0.00026919,7]
[386522761,1758347442469,-151.0,0.00026919,7]
[386522762,1758347442479,-151.0,0.00026919,7]
[386522763,1758347442489,-151.0,0.00026919,7]
[386522764,1758347442499,-151.0,0.00026919,7]
[386522765,1758347442508,-151.0,0.00026919,7]
[386522766,1758347442518,-151.0,0.00026919,7]
[386522767,1758347442527,-151.0,0.00026919,7]
[386522768,1758347442537,-151.0,0.00026919,7]
[386522769,1758347442547,-457.436183,0.00026919,7]
[386522770,1758347442557,-457.436183,0.00026919,7]
[386522771,1758347442566,-457.436183,0.00026919,7]
[386522772,1758347442576,-457.436183,0.00026919,7]
[386522773,1758347442585,-151.0,0.00026919,7]
[386522774,1758347442595,-151.0,0.00026919,7]
[386522775,1758347442604,-242.350998,0.00026919,7]
[386522776,1758347442613,-242.350998,0.00026919,7]
[386522777,1758347442623,-242.350998,0.00026919,7]
[386522778,1758347442633,-242.350998,0.00026919,7]
[386522779,1758347442643,-596.276939,0.00026919,7]
[386522780,1758347442652,-596.276939,0.00026919,7]
[386522781,1758347442662,-596.276939,0.00026919,7]
[386522782,1758347442671,-596.276939,0.00026919,7]
[386522783,1758347442680,-166.579602,0.00026919,7]
[386522784,1758347442690,-151.0,0.00026919,7]
[386522785,1758347442700,-151.0,0.00026919,7]
[386522786,1758347442709,-151.0,0.00026919,7]
[386522787,1758347442719,-151.0,0.00026919,7]
[386522788,1758347442728,-154.585927,0.00026919,7]
[386522789,1758347442738,-151.0,0.00026919,7]
[386522790,1758347442747,-151.0,0.00026919,7]
[386522791,1758347442757,-151.0,0.00026919,7]
[386522792,1758347442767,-151.0,0.00026919,7]
[386522793,1758347442776,-250.461814,0.00026919,7]
[386522794,1758347442786,-504.4521168,0.00026921,2]
[386522795,1758347442795,-513.16759771,0.00026921,2]
[386522796,1758347442805,-558.13,0.00026928,7]
[386522797,1758347442814,-3949.09,0.00027,7]
[386522798,1758347442823,-558.13,0.00027028,7]
[386522799,1758347442833,-214.26,0.00027028,7]
[386522800,1758347442842,-350.30737221,0.00027042,2]
[386522801,1758347442852,-161.98507711,0.00027046,2]
[386522802,1758347442861,-480.0,0.00027097,2]
[386522803,1758347442871,-480.0,0.00027114,2]
[386522804,1758347442880,-480.0,0.00027117,2]
[386522805,1758347442890,-480.0,0.00027117,2]
[386522806,1758347442900,-480.0,0.00027117,2]
[386522807,1758347442909,-577.08,0.00027117,2]
[386522808,1758347442918,-480.0,0.00027117,2]
[386522809,1758347442928,-480.0,0.00027117,2]
[386522810,1758347442937,-2028.1,0.00027126,3]
[386522811,1758347442947,-558.13,0.00027128,7]
[386522812,1758347442956,-481.48318519,0.00027169,2]
[386522813,1758347442966,-333.77,0.00027169,2]
[386522814,1758347442975,-703.2,0.00027169,2]
[386522815,1758347442984,-480.0,0.00027169,2]
[386522816,1758347442994,-480.0,0.00027169,2]
[386522817,1758347443003,-480.0,0.00027169,2]
[386522818,1758347443012,-480.0,0.00027169,2]
[386522819,1758347443023,-480.0,0.00027169,2]
[386522820,1758347443032,-174.41,0.00027169,2]
[386522821,1758347443041,-480.0,0.00027169,2]
[386522822,1758347443051,-214.61,0.00027169,2]
[386522823,1758347443060,-480.0,0.0002717,2]
[386522824,1758347443070,-440.19737068,0.0002717,2]
[386522825,1758347443079,-651.71,0.0002717,2]
[386522826,1758347443088,-337.94,0.0002717,2]
[386522827,1758347443098,-480.0,0.0002717,2]
[386522828,1758347443108,-500.0,0.00027172,5]
[386522829,1758347443118,-1845.78,0.00027173,2]
[386522830,1758347443127,-480.0,0.00027173,2]
[386522831,1758347443137,-460.0,0.00027184,2]
[386522832,1758347443146,-558.13,0.00027228,7]
[386522833,1758347443156,-502.73966054,0.00027248,2]
[386522834,1758347443166,-508.16415187,0.00027248,2]
[386522835,1758347443175,-151.0,0.00027248,7]
[386522836,1758347443184,-151.0,0.00027248,7]
[386522837,1758347443194,-247.997397,0.00027248,7]
[386522838,1758347443203,-151.0,0.00027248,7]
[386522839,1758347443213,-151.0,0.00027248,7]
[386522840,1758347443223,-151.0,0.00027248,7]
[386522841,1758347443233,-350.30737221,0.00027308,2]
[386522842,1758347443242,-558.13,0.00027328,7]
[386522843,1758347443252,-480.0,0.00027371,2]
[386522844,1758347443261,-480.0,0.00027391,2]
[386522845,1758347443271,-480.0,0.00027391,2]
[386522846,1758347443280,-480.0,0.00027391,2]
[386522847,1758347443290,-480.0,0.00027391,2]
[386522848,1758347443299,-480.0,0.00027391,2]
[386522849,1758347443308,-154.30136738,0.00027397,2]
[386522850,1758347443317,-576.25645242,0.00027421,5]
[386522851,1758347443327,-500.0,0.00027421,5]
[386522852,1758347443337,-558.13,0.00027428,15]
[386522853,1758347443346,-4340.715008,0.00027434,2]
[386522854,1758347443355,-537.73064359,0.00027443,2]
[386522855,1758347443364,-703.2,0.00027443,2]
[386522856,1758347443374,-480.0,0.00027443,2]
[386522857,1758347443383,-480.0,0.00027443,2]
[386522858,1758347443392,-480.0,0.00027443,2]
[386522859,1758347443401,-480.0,0.00027443,2]
[386522860,1758347443411,-418.39,0.00027443,2]
[386522861,1758347443421,-480.0,0.00027443,2]
[386522862,1758347443431,-303.17,0.00027444,2]
[386522863,1758347443440,-651.71,0.00027444,2]
[386522864,1758347443449,-480.0,0.00027444,2]
[386522865,1758347443460,-500.0,0.00027446,5]
[386522866,1758347443471,-1845.78,0.00027447,2]
[386522867,1758347443481,-480.0,0.00027447,2]
[386522868,1758347443490,-549.9627422,0.00027519,2]
[386522869,1758347443500,-558.13,0.00027528,15]
[386522870,1758347443509,-5215.7604101,0.00027542,2]
[386522871,1758347443518,-350.30737221,0.00027573,2]
[386522872,1758347443527,-713.43885766,0.00027599,2]
[386522873,1758347443538,-161.98507711,0.00027602,2]
[386522874,1758347443547,-558.13,0.00027628,15]
[386522875,1758347443556,-8681.430016,0.00027632,2]
[386522876,1758347443566,-152.276991,0.00027642,7]
[386522877,1758347443575,-151.0,0.00027642,7]
[386522878,1758347443586,-191.730319,0.00027642,7]
[386522879,1758347443595,-151.0,0.00027642,7]
[386522880,1758347443605,-151.0,0.00027642,7]
[386522881,1758347443615,-151.0,0.00027642,7]
[386522882,1758347443624,-151.0,0.00027642,7]
[386522883,1758347443634,-151.0,0.00027642,7]
[386522884,1758347443644,-151.0,0.00027642,7]
[386522885,1758347443654,-293.966456,0.00027642,7]
[386522886,1758347443663,-151.0,0.00027642,7]
[386522887,1758347443672,-151.0,0.00027642,7]
[386522888,1758347443682,-151.0,0.00027642,7]
[386522889,1758347443691,-151.0,0.00027642,7]
[386522890,1758347443700,-151.0,0.00027642,7]
[386522891,1758347443709,-151.0,0.00027642,7]
[386522892,1758347443719,-151.0,0.00027642,7]
[386522893,1758347443728,-151.0,0.00027642,7]
[386522894,1758347443738,-153.575822,0.00027642,7]
[386522895,1758347443748,-151.0,0.00027642,7]
[386522896,1758347443757,-152.277314,0.00027642,7]
[386522897,1758347443766,-151.0,0.00027642,7]
[386522898,1758347443775,-151.0,0.00027642,7]
[386522899,1758347443785,-151.0,0.00027642,7]
[386522900,1758347443794,-151.0,0.00027642,7]
[386522901,1758347443804,-151.0,0.00027642,7]
[386522902,1758347443813,-244.113017,0.00027642,7]
[386522903,1758347443823,-151.0,0.00027642,7]
[386522904,1758347443832,-457.436183,0.00027642,7]
[386522905,1758347443841,-457.436183,0.00027642,7]
[386522906,1758347443851,-457.436183,0.00027642,7]
[386522907,1758347443860,-457.436183,0.00027642,7]
[386522908,1758347443869,-151.0,0.00027642,7]
[386522909,1758347443878,-151.0,0.00027642,7]
[386522910,1758347443887,-242.350998,0.00027642,7]
[386522911,1758347443896,-242.350998,0.00027642,7]
[386522912,1758347443905,-242.350998,0.00027642,7]
[386522913,1758347443914,-242.350998,0.00027642,7]
[386522914,1758347443923,-242.350998,0.00027642,7]
[386522915,1758347443932,-242.350998,0.00027642,7]
[386522916,1758347443941,-242.350998,0.00027642,7]
[386522917,1758347443950,-596.276939,0.00027642,7]
[386522918,1758347443959,-242.350998,0.00027642,7]
[386522919,1758347443970,-596.276939,0.00027642,7]
[386522920,1758347443979,-596.276939,0.00027642,7]
[386522921,1758347443988,-596.276939,0.00027642,7]
[386522922,1758347443998,-596.276939,0.00027642,7]
[386522923,1758347444007,-596.276939,0.00027642,7]
[386522924,1758347444017,-596.276939,0.00027642,7]
[386522925,1758347444027,-596.276939,0.00027642,7]
[386522926,1758347444036,-151.0,0.00027642,7]
[386522927,1758347444046,-151.0,0.00027642,7]
[386522928,1758347444055,-151.0,0.00027642,7]
[386522929,1758347444064,-151.0,0.00027642,7]
[386522930,1758347444079,-151.0,0.00027642,7]
[386522931,1758347444091,-151.0,0.00027642,7]
[386522932,1758347444100,-151.0,0.00027642,7]
[386522933,1758347444109,-209.807345,0.00027642,7]
[386522934,1758347444119,-154.426236,0.00027642,7]
[386522935,1758347444128,-151.0,0.00027642,7]
[386522936,1758347444137,-151.0,0.00027642,7]
[386522937,1758347444146,-151.0,0.00027642,7]
[386522938,1758347444155,-151.0,0.00027642,7]
[386522939,1758347444165,-8681.430016,0.00027643,2]
[386522940,1758347444175,-4340.715008,0.00027643,2]
[386522941,1758347444185,-480.0,0.00027645,2]
[386522942,1758347444195,-13022.145024,0.00027652,2]
[386522943,1758347444205,-151.0,0.00027653,7]
[386522944,1758347444214,-151.0,0.00027653,7]
[386522945,1758347444223,-151.0,0.00027653,7]
[386522946,1758347444233,-298.514952,0.00027653,7]
[386522947,1758347444242,-298.514952,0.00027653,7]
[386522948,1758347444252,-298.514952,0.00027653,7]
[386522949,1758347444261,-298.514952,0.00027653,7]
[386522950,1758347444358,-151.0,0.00027653,7]
[386522951,1758347444368,-151.0,0.00027653,7]
[386522952,1758347444377,-156.312319,0.00027653,7]
[386522953,1758347444387,-151.0,0.00027653,7]
[386522954,1758347444396,-151.0,0.00027653,7]
[386522955,1758347444405,-151.469737,0.00027653,7]
[386522956,1758347444415,-154.070767,0.00027653,7]
[386522957,1758347444424,-151.0,0.00027653,7]
[386522958,1758347444434,-152.000428,0.00027653,7]
[386522959,1758347444443,-163.499674,0.00027653,7]
[386522960,1758347444453,-151.0,0.00027653,7]
[386522961,1758347444465,-151.0,0.00027653,7]
[386522962,1758347444475,-151.0,0.00027653,7]
[386522963,1758347444484,-151.0,0.00027653,7]
[386522964,1758347444493,-151.0,0.00027653,7]
[386522965,1758347444504,-284.474576,0.00027653,7]
[386522966,1758347444513,-284.474576,0.00027653,7]
[386522967,1758347444523,-284.474576,0.00027653,7]
[386522968,1758347444532,-151.0,0.00027653,7]
[386522969,1758347444543,-284.474576,0.00027653,7]
[386522970,1758347444554,-153.25012,0.00027653,7]
[386522971,1758347444563,-151.0,0.00027653,7]
[386522972,1758347444572,-151.0,0.00027653,7]
[386522973,1758347444582,-151.0,0.00027653,7]
[386522974,1758347444591,-151.0,0.00027653,7]
[386522975,1758347444602,-151.0,0.00027653,7]
[386522976,1758347444612,-151.0,0.00027653,7]
[386522977,1758347444622,-1000.0,0.00027653,2]
[386522978,1758347444632,-1000.0,0.00027653,2]
[386522979,1758347444642,-1000.0,0.00027653,2]
[386522980,1758347444651,-1000.0,0.00027653,2]
[386522981,1758347444661,-1000.0,0.00027653,2]
[386522982,1758347444670,-1000.0,0.00027653,2]
[386522983,1758347444679,-159.53759,0.00027653,7]
[386522984,1758347444688,-1000.0,0.00027653,2]
[386522985,1758347444697,-1000.0,0.00027653,2]
[386522986,1758347444707,-1000.0,0.00027653,2]
[386522987,1758347444716,-1000.0,0.00027653,2]
[386522988,1758347444725,-1000.0,0.00027653,2]
[386522989,1758347444734,-1000.0,0.00027653,2]
[386522990,1758347444744,-503.493016,0.00027653,2]
[386522991,1758347444754,-151.0,0.00027653,7]
[386522992,1758347444763,-151.0,0.00027653,7]
[386522993,1758347444772,-217.073668,0.00027653,7]
[386522994,1758347444782,-151.0,0.00027653,7]
[386522995,1758347444791,-176.34232,0.00027653,7]
[386522996,1758347444800,-151.0,0.00027653,7]
[386522997,1758347444811,-151.0,0.00027653,7]
[386522998,1758347444820,-151.0,0.00027653,7]
[386522999,1758347444831,-151.0,0.00027653,7]
[386523000,1758347444841,-151.0,0.00027653,7]
[386523001,1758347444857,-151.0,0.00027653,7]
[386523002,1758347444867,-287.921704,0.00027653,7]
[386523003,1758347444876,-457.436183,0.00027653,7]
[386523004,1758347444887,-457.436183,0.00027653,7]
[386523005,1758347444897,-457.436183,0.00027653,7]
[386523006,1758347444906,-457.436183,0.00027653,7]
[386523007,1758347444915,-151.0,0.00027653,7]
[386523008,1758347444925,-151.0,0.00027653,7]
[386523009,1758347444935,-242.350998,0.00027653,7]
[386523010,1758347444944,-242.350998,0.00027653,7]
[386523011,1758347444954,-242.350998,0.00027653,7]
[386523012,1758347444963,-596.276939,0.00027653,7]
[386523013,1758347444973,-242.350993,0.00027653,7]
[386523014,1758347444982,-596.276939,0.00027653,7]
[386523015,1758347444991,-596.276939,0.00027653,7]
[386523016,1758347445001,-596.27694697,0.00027653,7]
[386523017,1758347445011,-151.0,0.00027653,7]
[386523018,1758347445020,-151.0,0.00027653,7]
[386523019,1758347445030,-151.0,0.00027653,7]
[386523020,1758347445039,-151.0,0.00027653,7]
[386523021,1758347445048,-151.0,0.00027653,7]
[386523022,1758347445058,-151.0,0.00027662,7]
[386523023,1758347445067,-151.0,0.00027662,7]
[386523024,1758347445076,-152.471119,0.00027662,7]
[386523025,1758347445085,-151.0,0.00027662,7]
[386523026,1758347445095,-151.0,0.00027662,7]
[386523027,1758347445105,-156.245975,0.00027662,7]
[386523028,1758347445114,-151.0,0.00027662,7]
[386523029,1758347445123,-298.514952,0.00027662,7]
[386523030,1758347445133,-298.514952,0.00027662,7]
[386523031,1758347445143,-298.514952,0.00027662,7]
[386523032,1758347445152,-298.514952,0.00027662,7]
[386523033,1758347445162,-151.0,0.00027662,7]
[386523034,1758347445171,-151.0,0.00027662,7]
[386523035,1758347445180,-151.0,0.00027662,7]
[386523036,1758347445189,-151.0,0.00027662,7]
[386523037,1758347445199,-151.0,0.00027662,7]
[386523038,1758347445208,-151.0,0.00027662,7]
[386523039,1758347445217,-151.0,0.00027662,7]
[386523040,1758347445227,-151.0,0.00027662,7]
[386523041,1758347445236,-151.0,0.00027662,7]
[386523042,1758347445246,-211.008041,0.00027662,7]
[386523043,1758347445255,-284.474576,0.00027662,7]
[386523044,1758347445265,-284.474576,0.00027662,7]
[386523045,1758347445274,-284.474576,0.00027662,7]
[386523046,1758347445283,-151.0,0.00027662,7]
[386523047,1758347445293,-284.474576,0.00027662,7]
[386523048,1758347445302,-151.0,0.00027662,7]
[386523049,1758347445312,-151.0,0.00027662,7]
[386523050,1758347445321,-151.0,0.00027662,7]
[386523051,1758347445332,-151.0,0.00027662,7]
[386523052,1758347445341,-151.0,0.00027662,7]
[386523053,1758347445351,-151.0,0.00027662,7]
[386523054,1758347445360,-151.0,0.00027662,7]
[386523055,1758347445370,-151.0,0.00027662,7]
[386523056,1758347445379,-151.0,0.00027662,7]
[386523057,1758347445388,-151.0,0.00027662,7]
[386523058,1758347445398,-151.0,0.00027662,7]
[386523059,1758347445407,-151.0,0.00027662,7]
[386523060,1758347445417,-247.194416,0.00027662,7]
[386523061,1758347445427,-151.0,0.00027662,7]
[386523062,1758347445436,-151.0,0.00027662,7]
[386523063,1758347445445,-457.436183,0.00027662,7]
[386523064,1758347445455,-457.436183,0.00027662,7]
[386523065,1758347445465,-457.436183,0.00027662,7]
[386523066,1758347445474,-457.436187,0.00027662,7]
[386523067,1758347445483,-151.0,0.00027662,7]
[386523068,1758347445493,-162.195134,0.00027662,7]
[386523069,1758347445503,-21703.57504,0.00027663,2]
[386523070,1758347445513,-4340.715008,0.00027663,2]
[386523071,1758347445525,-480.0,0.00027665,2]
[386523072,1758347445534,-480.0,0.00027665,2]
[386523073,1758347445544,-480.0,0.00027665,2]
[386523074,1758347445553,-596.70157196,0.00027665,2]
[386523075,1758347445563,-480.0,0.00027665,2]
[386523076,1758347445572,-262261.76723547,0.00027673,2]
[386523077,1758347445581,-504.37349584,0.00027673,5]
[386523078,1758347445593,-500.0,0.00027673,5]
[386523079,1758347445604,-504.06798637,0.00027673,5]
[386523080,1758347445613,-500.0,0.00027673,5]
[386523081,1758347445623,-500.0,0.00027673,5]
[386523082,1758347445632,-500.0,0.00027673,5]
[386523083,1758347445642,-500.0,0.00027673,5]
[386523084,1758347445651,-150.0,0.00027673,5]
[386523085,1758347445661,-501.32474821,0.00027673,5]
[386523086,1758347445670,-502.75870492,0.00027673,5]
[386523087,1758347445679,-500.0,0.00027673,5]
[386523088,1758347445688,-501.74788486,0.00027673,5]
[386523089,1758347445698,-504.4370022,0.00027673,5]
[386523090,1758347445707,-151.437878,0.00027673,7]
[386523091,1758347445717,-209.530407,0.00027673,7]
[386523092,1758347445726,-151.0,0.00027673,7]
[386523093,1758347445735,-151.0,0.00027673,7]
[386523094,1758347445744,-159.856233,0.00027673,7]
[386523095,1758347445754,-152.900561,0.00027673,7]
[386523096,1758347445763,-151.0,0.00027673,7]
[386523097,1758347445773,-241.0,0.00027673,7]
[386523098,1758347445783,-158.682786,0.00027673,7]
[386523099,1758347445792,-151.0,0.00027673,7]
[386523100,1758347445802,-151.0,0.00027673,7]
[386523101,1758347445811,-298.514952,0.00027673,7]
[386523102,1758347445820,-298.514952,0.00027673,7]
[386523103,1758347445830,-298.514952,0.00027673,7]
[386523104,1758347445839,-298.514952,0.00027673,7]
[386523105,1758347445849,-151.0,0.00027673,7]
[386523106,1758347445858,-151.0,0.00027673,7]
[386523107,1758347445867,-232.995646,0.00027673,7]
[386523108,1758347445877,-151.0,0.00027673,7]
[386523109,1758347445886,-151.0,0.00027673,7]
[386523110,1758347445895,-151.0,0.00027673,7]
[386523112,1758347445904,-151.0,0.00027673,7]
[386523114,1758347445914,-151.0,0.00027673,7]
[386523116,1758347445923,-151.0,0.00027673,7]
[386523117,1758347445933,-284.474576,0.00027673,7]
[386523118,1758347445942,-284.474576,0.00027673,7]
[386523119,1758347445951,-284.474576,0.00027673,7]
[386523122,1758347445960,-151.0,0.00027673,7]
[386523125,1758347445970,-284.474576,0.00027673,7]
[386523126,1758347445979,-151.0,0.00027673,7]
[386523127,1758347445989,-151.0,0.00027673,7]
[386523128,1758347445998,-151.0,0.00027673,7]
[386523129,1758347446008,-151.0,0.00027673,7]
[386523130,1758347446018,-151.0,0.00027673,7]
[386523131,1758347446028,-272.047191,0.00027673,7]
[386523132,1758347446039,-151.0,0.00027673,7]
[386523133,1758347446048,-151.0,0.00027673,7]
[386523134,1758347446058,-151.0,0.00027673,7]
[386523135,1758347446067,-151.0,0.00027673,7]
[386523136,1758347446076,-703.2,0.00027717,2]
[386523137,1758347446085,-480.0,0.00027717,2]
[386523138,1758347446095,-387.37,0.00027717,2]
[386523139,1758347446104,-480.0,0.00027717,2]
[386523140,1758347446114,-253.73279796,0.00027717,2]
[386523142,1758347446123,-480.0,0.00027717,2]
[386523143,1758347446132,-651.71,0.00027718,2]
[386523144,1758347446141,-480.0,0.00027718,2]
[386523145,1758347446150,-432.22,0.0002772,5]
[386523146,1758347446159,-1845.78,0.00027721,2]
[386523147,1758347446169,-480.0,0.00027721,2]
[386523148,1758347446178,-558.13,0.00027728,15]
[386523149,1758347446187,-560.0,0.00027732,2]
[386523150,1758347446197,-168.0,0.00027766,2]
[386523151,1758347446207,-151.0,0.0002777,7]
[386523152,1758347446216,-151.0,0.0002777,7]
[386523153,1758347446226,-151.0,0.0002777,7]
[386523154,1758347446235,-367.82936064,0.00027773,5]
[386523155,1758347446244,-480.0,0.0002778,2]
[386523156,1758347446253,-480.0,0.0002778,2]
[386523157,1758347446262,-480.0,0.0002778,2]
[386523158,1758347446271,-558.13,0.00027828,15]
[386523159,1758347446281,-500.0,0.00027832,2]
[386523160,1758347446290,-480.0,0.00027919,2]
[386523161,1758347446299,-558.13,0.00027928,15]
[386523162,1758347446308,-533.96,0.00027939,2]
[386523163,1758347446318,-480.0,0.00027939,2]
[386523164,1758347446327,-480.0,0.00027939,2]
[386523166,1758347446337,-480.0,0.00027939,2]
[386523167,1758347446346,-500.0,0.00027943,2]
[386523169,1758347446356,-500.0,0.00027979,2]
[386523171,1758347446365,-703.2,0.00027991,2]
[386523173,1758347446374,-298.9621764,0.00027991,2]
[386523175,1758347446384,-480.0,0.00027991,2]
[386523176,1758347446394,-480.0,0.00027991,2]
[386523178,1758347446403,-651.71,0.00027992,2]
[386523179,1758347446412,-480.0,0.00027992,2]